[Event "*** Titled Tuesday 3|2 Blitz"]
[Site "Chess.com"]
[Date "2016.06.07"]
[Round "6"]
[White "platy3"]
[Black "gmjoey1"]
[Result "0-1"]
[WhiteElo "2679"]
[BlackElo "2540"]
[TimeControl "180+2"]
[EndTime "18:10:36 PDT"]
[Termination "gmjoey1 won by resignation"]

1. e4 {[%clk 0:03:01.9]} 1... c6 {[%clk 0:03:00.5]} 2. Nf3 {[%clk 0:02:59.9]}
2... d5 {[%clk 0:03:02.4]} 3. Nc3 {[%clk 0:03:01.6]} 3... dxe4 {[%clk
0:03:03.1]} 4. Nxe4 {[%clk 0:03:02.6]} 4... Nf6 {[%clk 0:03:05]} 5. Ng3 {[%clk
0:02:53.2]} 5... h5 {[%clk 0:03:04.4]} 6. Bc4 {[%clk 0:02:50.3]} 6... h4 {[%clk
0:03:04.2]} 7. Ne2 {[%clk 0:02:47.3]} 7... Qd6 {[%clk 0:02:18.5]} 8. h3 {[%clk
0:02:47]} 8... Be6 {[%clk 0:02:15.6]} 9. Bxe6 {[%clk 0:02:45.8]} 9... Qxe6
{[%clk 0:02:16.5]} 10. O-O {[%clk 0:02:47.7]} 10... Nbd7 {[%clk 0:02:00.6]} 11.
d4 {[%clk 0:02:41.8]} 11... Qf5 {[%clk 0:01:58.8]} 12. c3 {[%clk 0:02:39.6]}
12... e6 {[%clk 0:01:58.8]} 13. Qb3 {[%clk 0:02:32.8]} 13... O-O-O {[%clk
0:01:59.1]} 14. Bf4 {[%clk 0:02:24.5]} 14... Nd5 {[%clk 0:01:54.5]} 15. Bh2
{[%clk 0:02:24.7]} 15... g5 {[%clk 0:01:55.9]} 16. c4 {[%clk 0:02:24.5]} 16...
Nf4 {[%clk 0:01:56.5]} 17. Bxf4 {[%clk 0:02:17]} 17... gxf4 {[%clk 0:01:57.9]}
18. d5 {[%clk 0:01:55.1]} 18... Nc5 {[%clk 0:01:53.1]} 19. Qc3 {[%clk
0:01:54.9]} 19... Rg8 {[%clk 0:01:54.3]} 20. Kh2 {[%clk 0:01:44.6]} 20... exd5
{[%clk 0:01:46.4]} 21. cxd5 {[%clk 0:01:45.3]} 21... Ne4 {[%clk 0:01:47]} 22.
Qc2 {[%clk 0:01:38.6]} 22... Rxd5 {[%clk 0:01:36.3]} 23. Ned4 {[%clk 0:01:19.8]}
23... Qg6 {[%clk 0:01:03]} 24. Nxh4 {[%clk 0:01:17.8]} 24... Qf6 {[%clk
0:01:04]} 25. Ndf3 {[%clk 0:01:17.4]} 25... Ng5 {[%clk 0:01:02.4]} 26. Rad1
{[%clk 0:01:16.8]} 26... Nxf3+ {[%clk 0:00:48.4]} 27. Nxf3 {[%clk 0:01:18.7]}
27... Rh5 {[%clk 0:00:48.4]} 28. Qe4 {[%clk 0:01:12.4]} 28... Bd6 {[%clk
0:00:45.7]} 29. Qd4 {[%clk 0:01:12.3]} 29... Qe6 {[%clk 0:00:42.6]} 30. Rg1
{[%clk 0:00:30.6]} 30... Rxg2+ {[%clk 0:00:40.2]} 0-1

[Event "*** Titled Tuesday 3|2 Blitz"]
[Site "Chess.com"]
[Date "2016.06.07"]
[Round "6"]
[White "FearlessKing64"]
[Black "chesstatour"]
[Result "1-0"]
[WhiteElo "2101"]
[BlackElo "1991"]
[TimeControl "180+2"]
[EndTime "18:10:56 PDT"]
[Termination "FearlessKing64 won on time"]

1. e4 {[%clk 0:03:01.9]} 1... c6 {[%clk 0:03:01.1]} 2. d4 {[%clk 0:03:01.4]}
2... d5 {[%clk 0:03:03]} 3. e5 {[%clk 0:03:02.4]} 3... Bf5 {[%clk 0:03:03]} 4.
h4 {[%clk 0:03:03.2]} 4... h5 {[%clk 0:03:01.8]} 5. Bg5 {[%clk 0:03:03.9]} 5...
Qb6 {[%clk 0:02:59.3]} 6. Bd3 {[%clk 0:03:04.7]} 6... Bxd3 {[%clk 0:02:59.5]} 7.
Qxd3 {[%clk 0:03:04.7]} 7... Qxb2 {[%clk 0:02:59.8]} 8. e6 {[%clk 0:02:59]} 8...
Nh6 {[%clk 0:02:47.4]} 9. Ne2 {[%clk 0:02:44.5]} 9... Qxa1 {[%clk 0:02:47.3]}
10. Qb3 {[%clk 0:02:44.5]} 10... b5 {[%clk 0:02:43.2]} 11. O-O {[%clk
0:02:43.6]} 11... a5 {[%clk 0:02:37.7]} 12. c3 {[%clk 0:02:25]} 12... a4 {[%clk
0:02:35.2]} 13. Qc2 {[%clk 0:02:25.5]} 13... a3 {[%clk 0:02:35.6]} 14. Bc1
{[%clk 0:02:12.2]} 14... b4 {[%clk 0:01:23.4]} 15. cxb4 {[%clk 0:02:10.6]} 15...
Ng4 {[%clk 0:01:15.6]} 16. Nxa3 {[%clk 0:01:29.2]} 16... g6 {[%clk 0:00:52.5]}
17. exf7+ {[%clk 0:01:13.1]} 17... Kxf7 {[%clk 0:00:52.6]} 18. Nc3 {[%clk
0:01:11.2]} 18... Bg7 {[%clk 0:00:43.7]} 19. Bb2 {[%clk 0:01:10.8]} 19... Qxf1+
{[%clk 0:00:42.3]} 20. Kxf1 {[%clk 0:01:11.4]} 20... Rf8 {[%clk 0:00:40.8]} 21.
b5 {[%clk 0:01:09.3]} 21... e6 {[%clk 0:00:28.6]} 22. bxc6 {[%clk 0:00:59.5]}
22... Nxc6 {[%clk 0:00:27.2]} 23. Nxd5 {[%clk 0:00:56.4]} 23... Rac8 {[%clk
0:00:12.3]} 24. Nf4 {[%clk 0:00:51]} 24... Ne7 {[%clk 0:00:10.7]} 25. Qb3 {[%clk
0:00:39.9]} 25... Rc6 {[%clk 0:00:05.5]} 26. d5 {[%clk 0:00:38.2]} 26... exd5
{[%clk 0:00:06.3]} 27. Nxd5 {[%clk 0:00:38.7]} 27... Re6 {[%clk 0:00:05.5]} 28.
Nf4 {[%clk 0:00:36.7]} 28... Bxb2 {[%clk 0:00:02.8]} 29. Nxe6 {[%clk 0:00:31.6]}
29... Bxa3 {[%clk 0:00:02.5]} 30. Nxf8+ {[%clk 0:00:30.8]} 30... Kxf8 {[%clk
0:00:03.5]} 31. Qxa3 {[%clk 0:00:32.1]} 1-0

[Event "*** Titled Tuesday 3|2 Blitz"]
[Site "Chess.com"]
[Date "2016.06.07"]
[Round "6"]
[White "ShimanovAlex"]
[Black "anon102030"]
[Result "1-0"]
[WhiteElo "2660"]
[BlackElo "2512"]
[TimeControl "180+2"]
[EndTime "18:11:08 PDT"]
[Termination "ShimanovAlex won by resignation"]

1. d4 {[%clk 0:03:00.7]} 1... Nf6 {[%clk 0:03:00.9]} 2. Nf3 {[%clk 0:03:02.1]}
2... d6 {[%clk 0:02:59.7]} 3. Nc3 {[%clk 0:02:58]} 3... g6 {[%clk 0:03:01.1]} 4.
e4 {[%clk 0:02:58.4]} 4... Bg7 {[%clk 0:03:02.3]} 5. Be2 {[%clk 0:02:58]} 5...
Nbd7 {[%clk 0:02:58.8]} 6. O-O {[%clk 0:02:58.5]} 6... e5 {[%clk 0:03:00.3]} 7.
dxe5 {[%clk 0:02:59]} 7... dxe5 {[%clk 0:03:01.4]} 8. Be3 {[%clk 0:02:59.8]}
8... O-O {[%clk 0:02:58.6]} 9. Nd2 {[%clk 0:03:00.9]} 9... Qe7 {[%clk
0:02:57.9]} 10. Nc4 {[%clk 0:03:01.5]} 10... b6 {[%clk 0:02:57.3]} 11. f3 {[%clk
0:02:59]} 11... Bb7 {[%clk 0:02:58]} 12. a4 {[%clk 0:02:58]} 12... Rad8 {[%clk
0:02:54.9]} 13. Qc1 {[%clk 0:02:57.4]} 13... a6 {[%clk 0:02:50.2]} 14. Bg5
{[%clk 0:02:52.2]} 14... Nc5 {[%clk 0:02:37.1]} 15. Ne3 {[%clk 0:02:53.1]} 15...
Ne6 {[%clk 0:02:04]} 16. Ncd5 {[%clk 0:02:54]} 16... Bxd5 {[%clk 0:02:03.4]} 17.
Nxd5 {[%clk 0:02:54.9]} 17... Qc5+ {[%clk 0:02:05]} 18. Be3 {[%clk 0:02:55.1]}
18... Qd6 {[%clk 0:01:57.6]} 19. Nxf6+ {[%clk 0:02:49.3]} 19... Bxf6 {[%clk
0:01:59.5]} 20. Bxa6 {[%clk 0:02:50.5]} 20... Nd4 {[%clk 0:01:43.4]} 21. Rd1
{[%clk 0:02:44.8]} 21... Qc6 {[%clk 0:01:23.2]} 22. Bd3 {[%clk 0:02:42.5]} 22...
Rd6 {[%clk 0:01:20.1]} 23. a5 {[%clk 0:02:25.7]} 23... Rfd8 {[%clk 0:01:06.7]}
24. axb6 {[%clk 0:02:17.4]} 24... cxb6 {[%clk 0:01:07.1]} 25. Bxd4 {[%clk
0:02:18.6]} 25... Rxd4 {[%clk 0:01:07.1]} 26. Ra7 {[%clk 0:02:18.6]} 26... b5
{[%clk 0:00:52.4]} 27. Qa1 {[%clk 0:02:17.4]} 27... b4 {[%clk 0:00:38.8]} 28. b3
{[%clk 0:02:16.6]} 28... Bg5 {[%clk 0:00:36.8]} 29. Kh1 {[%clk 0:02:13.4]} 29...
Qc5 {[%clk 0:00:36.9]} 30. Ra5 {[%clk 0:02:09.4]} 30... Qc7 {[%clk 0:00:37.1]}
31. Rf1 {[%clk 0:02:04.6]} 31... Bd2 {[%clk 0:00:34.3]} 32. Ra7 {[%clk
0:02:04.9]} 32... Qd6 {[%clk 0:00:33.6]} 33. Bc4 {[%clk 0:02:03.1]} 33... Rf8
{[%clk 0:00:32]} 34. Bd5 {[%clk 0:01:58.3]} 34... Bc3 {[%clk 0:00:32.3]} 35. Qa4
{[%clk 0:01:56.3]} 35... Rxd5 {[%clk 0:00:27.7]} 36. exd5 {[%clk 0:01:56.5]}
36... Qxd5 {[%clk 0:00:29.6]} 37. Qd7 {[%clk 0:01:54.3]} 37... Qxd7 {[%clk
0:00:26.7]} 38. Rxd7 {[%clk 0:01:54.9]} 38... Ra8 {[%clk 0:00:28.6]} 39. Rdd1
{[%clk 0:01:51.1]} 39... Ra2 {[%clk 0:00:29.2]} 40. Rf2 {[%clk 0:01:52.4]} 40...
Kg7 {[%clk 0:00:29.5]} 41. g3 {[%clk 0:01:53.5]} 41... h5 {[%clk 0:00:30.5]} 42.
Re2 {[%clk 0:01:54]} 42... Kf6 {[%clk 0:00:31.2]} 43. Kg2 {[%clk 0:01:55.3]}
43... Rb2 {[%clk 0:00:32.1]} 44. Rd7 {[%clk 0:01:53.6]} 44... Ra2 {[%clk
0:00:32.2]} 45. Rb7 {[%clk 0:01:54.5]} 45... Kg7 {[%clk 0:00:26.1]} 46. f4
{[%clk 0:01:51.7]} 46... exf4 {[%clk 0:00:23.6]} 47. gxf4 {[%clk 0:01:53.6]}
47... Kf6 {[%clk 0:00:23.6]} 48. Kf3 {[%clk 0:01:53.2]} 48... Rb2 {[%clk
0:00:20.3]} 49. Ree7 {[%clk 0:01:53]} 49... Rxc2 {[%clk 0:00:20.5]} 50. Rxf7+
{[%clk 0:01:53.6]} 50... Ke6 {[%clk 0:00:22.4]} 51. Rfe7+ {[%clk 0:01:52.9]}
51... Kd6 {[%clk 0:00:20]} 52. Rbd7+ {[%clk 0:01:52.7]} 52... Kc6 {[%clk
0:00:21.5]} 53. Rd3 {[%clk 0:01:53.6]} 53... Rxh2 {[%clk 0:00:15.2]} 54. Re6+
{[%clk 0:01:53.7]} 54... Kc5 {[%clk 0:00:13.7]} 55. Rxg6 {[%clk 0:01:54.7]}
55... Rg2 {[%clk 0:00:15.4]} 56. Rxg2 {[%clk 0:01:55.2]} 1-0

[Event "*** Titled Tuesday 3|2 Blitz"]
[Site "Chess.com"]
[Date "2016.06.07"]
[Round "6"]
[White "aspired"]
[Black "michaelq2d5"]
[Result "0-1"]
[WhiteElo "2477"]
[BlackElo "2488"]
[TimeControl "180+2"]
[EndTime "18:11:08 PDT"]
[Termination "michaelq2d5 won by resignation"]

1. e4 {[%clk 0:02:58.7]} 1... e5 {[%clk 0:03:00.9]} 2. Nf3 {[%clk 0:02:59]} 2...
Nc6 {[%clk 0:03:02.1]} 3. Nc3 {[%clk 0:02:58.9]} 3... Nf6 {[%clk 0:03:02.8]} 4.
Bb5 {[%clk 0:02:59.2]} 4... Bd6 {[%clk 0:03:03.3]} 5. d3 {[%clk 0:02:53.7]} 5...
h6 {[%clk 0:03:03.7]} 6. g4 {[%clk 0:02:48.1]} 6... Nd4 {[%clk 0:03:04]} 7. Rg1
{[%clk 0:02:42.3]} 7... c6 {[%clk 0:02:57]} 8. Bc4 {[%clk 0:02:40.3]} 8... b5
{[%clk 0:02:54.5]} 9. Bb3 {[%clk 0:02:41.3]} 9... Nxb3 {[%clk 0:02:51.6]} 10.
axb3 {[%clk 0:02:43.2]} 10... Bc7 {[%clk 0:02:51.8]} 11. g5 {[%clk 0:02:42.5]}
11... hxg5 {[%clk 0:02:51.9]} 12. Bxg5 {[%clk 0:02:44.1]} 12... d6 {[%clk
0:02:46]} 13. Qe2 {[%clk 0:02:29.3]} 13... Qe7 {[%clk 0:02:27.4]} 14. O-O-O
{[%clk 0:02:13.8]} 14... a5 {[%clk 0:02:22.3]} 15. d4 {[%clk 0:02:06.4]} 15...
a4 {[%clk 0:02:18.7]} 16. bxa4 {[%clk 0:01:37.9]} 16... b4 {[%clk 0:02:19.3]}
17. dxe5 {[%clk 0:01:36.6]} 17... dxe5 {[%clk 0:02:06.5]} 18. Qc4 {[%clk
0:01:35.6]} 18... Bd7 {[%clk 0:01:28.7]} 19. Nd5 {[%clk 0:00:59.2]} 19... cxd5
{[%clk 0:01:19.6]} 20. Qxc7 {[%clk 0:00:58.6]} 20... Rc8 {[%clk 0:01:00.1]} 21.
Qxe5 {[%clk 0:00:51.6]} 21... Qxe5 {[%clk 0:00:58.8]} 22. Nxe5 {[%clk
0:00:53.5]} 22... Bxa4 {[%clk 0:01:00]} 23. Rd2 {[%clk 0:00:21.1]} 23... Nxe4
{[%clk 0:00:58.6]} 24. Re2 {[%clk 0:00:22.1]} 24... Rxh2 {[%clk 0:00:47.5]} 25.
Nd3 {[%clk 0:00:18.8]} 25... Bb5 {[%clk 0:00:37.3]} 26. Kd1 {[%clk 0:00:11.7]}
26... b3 {[%clk 0:00:29.1]} 27. Be3 {[%clk 0:00:10.6]} 27... bxc2+ {[%clk
0:00:19.9]} 28. Rxc2 {[%clk 0:00:11.7]} 28... Ba4 {[%clk 0:00:21.2]} 29. Ne1
{[%clk 0:00:08.9]} 29... Nxf2+ {[%clk 0:00:21]} 30. Bxf2 {[%clk 0:00:08.2]}
30... Rxf2 {[%clk 0:00:21.8]} 0-1

[Event "*** Titled Tuesday 3|2 Blitz"]
[Site "Chess.com"]
[Date "2016.06.07"]
[Round "6"]
[White "dretch"]
[Black "jcibarra"]
[Result "1/2-1/2"]
[WhiteElo "2638"]
[BlackElo "2648"]
[TimeControl "180+2"]
[EndTime "18:11:16 PDT"]
[Termination "Game drawn by repetition"]

1. d4 {[%clk 0:03:01.9]} 1... Nf6 {[%clk 0:03:00.1]} 2. c4 {[%clk 0:03:03]} 2...
d6 {[%clk 0:03:01.5]} 3. Nf3 {[%clk 0:03:03.7]} 3... g6 {[%clk 0:03:02.2]} 4.
Nc3 {[%clk 0:03:04.9]} 4... Bf5 {[%clk 0:03:03.2]} 5. d5 {[%clk 0:03:03.5]} 5...
e5 {[%clk 0:03:02.1]} 6. dxe6 {[%clk 0:02:59.3]} 6... Bxe6 {[%clk 0:03:03]} 7.
e4 {[%clk 0:02:58.7]} 7... Bg7 {[%clk 0:03:02.5]} 8. Be2 {[%clk 0:02:58.8]} 8...
O-O {[%clk 0:02:57.1]} 9. Nd4 {[%clk 0:02:54.2]} 9... Bd7 {[%clk 0:02:57.4]} 10.
O-O {[%clk 0:02:54.6]} 10... Re8 {[%clk 0:02:58.6]} 11. f3 {[%clk 0:02:53.6]}
11... Nc6 {[%clk 0:02:59.2]} 12. Be3 {[%clk 0:02:54.3]} 12... Nh5 {[%clk
0:03:00.6]} 13. Qd2 {[%clk 0:02:35.4]} 13... f5 {[%clk 0:03:01.5]} 14. Nxc6
{[%clk 0:02:25.5]} 14... Bxc6 {[%clk 0:03:02.3]} 15. exf5 {[%clk 0:02:23.3]}
15... Qh4 {[%clk 0:03:03]} 16. Bf2 {[%clk 0:02:15]} 16... Qf4 {[%clk 0:03:02.7]}
17. Qc2 {[%clk 0:02:09.3]} 17... Bxc3 {[%clk 0:02:43.7]} 18. bxc3 {[%clk
0:02:07]} 18... Qxf5 {[%clk 0:02:38.6]} 19. Bd3 {[%clk 0:01:57.3]} 19... Qg5
{[%clk 0:02:37.6]} 20. h4 {[%clk 0:01:39.2]} 20... Qf6 {[%clk 0:02:29.3]} 21.
Rfe1 {[%clk 0:01:05.7]} 21... Nf4 {[%clk 0:02:25.5]} 22. Bf1 {[%clk 0:00:43.8]}
22... b6 {[%clk 0:02:18]} 23. Kh2 {[%clk 0:00:42.2]} 23... Rxe1 {[%clk
0:02:08.8]} 24. Rxe1 {[%clk 0:00:42.5]} 24... Re8 {[%clk 0:02:10.3]} 25. Rxe8+
{[%clk 0:00:41.6]} 25... Bxe8 {[%clk 0:02:12.2]} 26. Qe4 {[%clk 0:00:42.2]}
26... Qe5 {[%clk 0:02:07.3]} 27. Qxe5 {[%clk 0:00:41.2]} 27... dxe5 {[%clk
0:02:09.2]} 28. c5 {[%clk 0:00:42.9]} 28... b5 {[%clk 0:02:06.2]} 29. g3 {[%clk
0:00:37.2]} 29... Ne6 {[%clk 0:02:00.9]} 30. Be3 {[%clk 0:00:35.6]} 30... Bc6
{[%clk 0:02:01.9]} 31. Kg2 {[%clk 0:00:34.6]} 31... h5 {[%clk 0:02:00.6]} 32.
Kf2 {[%clk 0:00:35.7]} 32... Kf7 {[%clk 0:02:01.1]} 33. Be2 {[%clk 0:00:35.4]}
33... a6 {[%clk 0:02:00.7]} 34. Ke1 {[%clk 0:00:36.1]} 34... Bd5 {[%clk
0:02:01.6]} 35. a3 {[%clk 0:00:37.4]} 35... c6 {[%clk 0:02:02.6]} 36. Kd2 {[%clk
0:00:37.2]} 36... Ng7 {[%clk 0:02:03.5]} 37. Bf2 {[%clk 0:00:33.5]} 37... Ne6
{[%clk 0:02:01.8]} 38. Bd1 {[%clk 0:00:34.2]} 38... Kf6 {[%clk 0:02:01.6]} 39.
Be3 {[%clk 0:00:32.5]} 39... Ng7 {[%clk 0:01:59.5]} 40. Bg5+ {[%clk 0:00:31.4]}
40... Kf7 {[%clk 0:01:59.2]} 41. g4 {[%clk 0:00:31.7]} 41... Ne6 {[%clk
0:01:57.4]} 42. Be3 {[%clk 0:00:33]} 42... Kf6 {[%clk 0:01:56.1]} 43. Ke1 {[%clk
0:00:32.5]} 43... Nf4 {[%clk 0:01:50.1]} 44. Kf2 {[%clk 0:00:30.4]} 44... Nd3+
{[%clk 0:01:40.5]} 45. Kg3 {[%clk 0:00:30.8]} 45... Nb2 {[%clk 0:01:36.3]} 46.
Bc2 {[%clk 0:00:31.3]} 46... Nc4 {[%clk 0:01:36]} 47. Bg5+ {[%clk 0:00:28.6]}
47... Kf7 {[%clk 0:01:34.9]} 48. Bc1 {[%clk 0:00:29.2]} 48... Kf6 {[%clk
0:01:31.7]} 49. Bg5+ {[%clk 0:00:23.3]} 49... Kf7 {[%clk 0:01:32]} 50. Bc1
{[%clk 0:00:24.4]} 50... Kf6 {[%clk 0:01:28.9]} 51. Bg5+ {[%clk 0:00:25.2]}
1/2-1/2

[Event "*** Titled Tuesday 3|2 Blitz"]
[Site "Chess.com"]
[Date "2016.06.07"]
[Round "6"]
[White "hermionegrangermagic"]
[Black "UltimateCrusher2"]
[Result "1-0"]
[WhiteElo "2291"]
[BlackElo "2090"]
[TimeControl "180+2"]
[EndTime "18:12:32 PDT"]
[Termination "hermionegrangermagic won by resignation"]

1. Nf3 {[%clk 0:03:01.9]} 1... b6 {[%clk 0:02:54.3]} 2. g4 {[%clk 0:02:59.6]}
2... Bb7 {[%clk 0:02:43.7]} 3. Bg2 {[%clk 0:02:59.6]} 3... g6 {[%clk 0:02:31.2]}
4. h4 {[%clk 0:02:57.2]} 4... h5 {[%clk 0:02:24.9]} 5. g5 {[%clk 0:02:50.5]}
5... Bg7 {[%clk 0:02:20.4]} 6. d4 {[%clk 0:02:46.9]} 6... e6 {[%clk 0:02:17.8]}
7. c4 {[%clk 0:02:46.2]} 7... Ne7 {[%clk 0:02:15.1]} 8. Nc3 {[%clk 0:02:44.4]}
8... d5 {[%clk 0:02:10.8]} 9. Qd3 {[%clk 0:02:24.1]} 9... dxc4 {[%clk
0:02:06.5]} 10. Qxc4 {[%clk 0:02:24.1]} 10... Bxd4 {[%clk 0:02:06.7]} 11. Bf4
{[%clk 0:02:22.2]} 11... c5 {[%clk 0:02:04.6]} 12. O-O-O {[%clk 0:02:12.5]}
12... Bd5 {[%clk 0:01:40.7]} 13. Rxd4 {[%clk 0:01:39.9]} 13... cxd4 {[%clk
0:01:26.8]} 14. Qxd4 {[%clk 0:01:38.7]} 14... O-O {[%clk 0:01:16.4]} 15. e4
{[%clk 0:01:17.1]} 15... Bb7 {[%clk 0:01:12.6]} 16. Qe3 {[%clk 0:01:14.3]} 16...
Nbc6 {[%clk 0:01:07.8]} 17. Rd1 {[%clk 0:01:14]} 17... Qc8 {[%clk 0:01:08.6]}
18. Bd6 {[%clk 0:01:06.7]} 18... Rd8 {[%clk 0:01:03]} 19. Qf4 {[%clk 0:01:06]}
19... Rxd6 {[%clk 0:00:51.8]} 20. Qxd6 {[%clk 0:00:55.7]} 20... Qb8 {[%clk
0:00:39.6]} 21. Qd7 {[%clk 0:00:43.7]} 21... Qf4+ {[%clk 0:00:35.9]} 22. Kb1
{[%clk 0:00:41.9]} 22... Ba6 {[%clk 0:00:36.4]} 23. Qd6 {[%clk 0:00:28.4]} 23...
Qxd6 {[%clk 0:00:25.9]} 24. Rxd6 {[%clk 0:00:30.3]} 24... Rd8 {[%clk 0:00:24.1]}
25. e5 {[%clk 0:00:23.5]} 25... Kf8 {[%clk 0:00:18.4]} 26. Ne4 {[%clk
0:00:22.2]} 26... Rxd6 {[%clk 0:00:15.9]} 27. Nxd6 {[%clk 0:00:20.8]} 27... Nf5
{[%clk 0:00:15]} 28. Nxf5 {[%clk 0:00:20.9]} 28... exf5 {[%clk 0:00:15.6]} 29.
Kc1 {[%clk 0:00:20.8]} 29... Ke7 {[%clk 0:00:15.6]} 30. Kd2 {[%clk 0:00:17.3]}
30... Ke6 {[%clk 0:00:16.8]} 31. Kc3 {[%clk 0:00:13.8]} 31... Nxe5 {[%clk
0:00:16.1]} 32. Nd4+ {[%clk 0:00:14.8]} 32... Kd6 {[%clk 0:00:16.1]} 33. b4
{[%clk 0:00:14.6]} 33... Ng4 {[%clk 0:00:16.8]} 34. b5 {[%clk 0:00:11.1]} 34...
Bc8 {[%clk 0:00:17]} 35. Nc6 {[%clk 0:00:07.5]} 35... a5 {[%clk 0:00:09.2]} 36.
bxa6 {[%clk 0:00:06.4]} 36... Bxa6 {[%clk 0:00:10.3]} 37. Nb4 {[%clk 0:00:07.3]}
37... Bb5 {[%clk 0:00:10.8]} 38. f4 {[%clk 0:00:05.4]} 38... Ne3 {[%clk
0:00:08.4]} 39. Bf3 {[%clk 0:00:06.3]} 39... Bd7 {[%clk 0:00:09.4]} 40. a4
{[%clk 0:00:06.6]} 40... Be6 {[%clk 0:00:10.1]} 41. Kd4 {[%clk 0:00:07.1]} 41...
Nd1 {[%clk 0:00:09.8]} 42. Bxd1 {[%clk 0:00:07.5]} 42... Kc7 {[%clk 0:00:09.3]}
43. Nd3 {[%clk 0:00:08.2]} 43... Kb7 {[%clk 0:00:11.2]} 44. Ne5 {[%clk
0:00:09.2]} 44... Ka6 {[%clk 0:00:12.4]} 45. Be2+ {[%clk 0:00:10.3]} 45... Ka5
{[%clk 0:00:14.3]} 46. Bc4 {[%clk 0:00:11.5]} 46... Bxc4 {[%clk 0:00:12.6]} 47.
Kxc4 {[%clk 0:00:12.3]} 47... Kxa4 {[%clk 0:00:13.9]} 48. Kc3 {[%clk 0:00:13.1]}
48... b5 {[%clk 0:00:12.4]} 49. Kb2 {[%clk 0:00:13.1]} 49... Kb4 {[%clk
0:00:12.8]} 50. Nxf7 {[%clk 0:00:14.1]} 50... Kc5 {[%clk 0:00:14.7]} 51. Ne5
{[%clk 0:00:15.1]} 51... Kd4 {[%clk 0:00:16.3]} 52. Nxg6 {[%clk 0:00:16.1]}
52... Ke4 {[%clk 0:00:18.2]} 53. Ne7 {[%clk 0:00:16.5]} 53... Kxf4 {[%clk
0:00:20.1]} 54. g6 {[%clk 0:00:17.6]} 1-0

[Event "*** Titled Tuesday 3|2 Blitz"]
[Site "Chess.com"]
[Date "2016.06.07"]
[Round "6"]
[White "akinov-akinseye"]
[Black "Andrejkin"]
[Result "1/2-1/2"]
[WhiteElo "1711"]
[BlackElo "2115"]
[TimeControl "180+2"]
[EndTime "18:13:08 PDT"]
[Termination "Game drawn by repetition"]

1. e4 {[%clk 0:03:00.4]} 1... c5 {[%clk 0:02:59.5]} 2. d4 {[%clk 0:03:01.6]}
2... cxd4 {[%clk 0:02:59]} 3. c3 {[%clk 0:03:02.7]} 3... Nf6 {[%clk 0:02:59.9]}
4. e5 {[%clk 0:03:02.4]} 4... Nd5 {[%clk 0:03:01.5]} 5. cxd4 {[%clk 0:03:03]}
5... d6 {[%clk 0:03:02.9]} 6. Nf3 {[%clk 0:03:01.8]} 6... Nc6 {[%clk 0:03:04.2]}
7. e6 {[%clk 0:02:56.1]} 7... Bxe6 {[%clk 0:02:56.9]} 8. Bc4 {[%clk 0:02:52.5]}
8... Nb6 {[%clk 0:02:41.8]} 9. Bxe6 {[%clk 0:02:52.5]} 9... fxe6 {[%clk
0:02:42.6]} 10. O-O {[%clk 0:02:52.2]} 10... Nd5 {[%clk 0:02:39.5]} 11. Nc3
{[%clk 0:02:51.2]} 11... Nf6 {[%clk 0:02:39.7]} 12. Re1 {[%clk 0:02:51.2]} 12...
Qd7 {[%clk 0:02:37.3]} 13. d5 {[%clk 0:02:51.6]} 13... exd5 {[%clk 0:02:35.6]}
14. Nxd5 {[%clk 0:02:52.6]} 14... e5 {[%clk 0:02:30.3]} 15. a3 {[%clk 0:02:37]}
15... Be7 {[%clk 0:02:29.2]} 16. b4 {[%clk 0:02:31.3]} 16... O-O {[%clk
0:02:27.8]} 17. Nxf6+ {[%clk 0:02:32]} 17... Bxf6 {[%clk 0:02:25.7]} 18. b5
{[%clk 0:02:31]} 18... Ne7 {[%clk 0:02:25.9]} 19. Nxe5 {[%clk 0:02:20.6]} 19...
Qxb5 {[%clk 0:02:13.2]} 20. a4 {[%clk 0:02:05.3]} 20... Qa6 {[%clk 0:02:01]} 21.
Qb3+ {[%clk 0:01:57.5]} 21... Kh8 {[%clk 0:01:58.9]} 22. Nf7+ {[%clk 0:01:35.6]}
22... Rxf7 {[%clk 0:01:43.7]} 23. Qxf7 {[%clk 0:01:35.3]} 23... Bxa1 {[%clk
0:01:26.4]} 24. Rxe7 {[%clk 0:01:32.9]} 24... Qc6 {[%clk 0:01:19.3]} 25. Bh6
{[%clk 0:01:25.2]} 25... Rg8 {[%clk 0:01:12.6]} 26. h3 {[%clk 0:00:58.3]} 26...
Qxa4 {[%clk 0:01:09.5]} 27. Rxb7 {[%clk 0:00:54.6]} 27... Qd1+ {[%clk
0:01:08.8]} 28. Kh2 {[%clk 0:00:54.2]} 28... Be5+ {[%clk 0:01:07.1]} 29. g3
{[%clk 0:00:53.2]} 29... a5 {[%clk 0:00:56.7]} 30. Ra7 {[%clk 0:00:36]} 30... a4
{[%clk 0:00:48.5]} 31. Be3 {[%clk 0:00:34]} 31... Qb3 {[%clk 0:00:43.3]} 32. Rb7
{[%clk 0:00:31.1]} 32... Qxf7 {[%clk 0:00:42.9]} 33. Rxf7 {[%clk 0:00:31.6]}
33... Ra8 {[%clk 0:00:43.1]} 34. Bc1 {[%clk 0:00:29.8]} 34... Kg8 {[%clk
0:00:41]} 35. Rf3 {[%clk 0:00:25.1]} 35... g6 {[%clk 0:00:34]} 36. Ba3 {[%clk
0:00:24.1]} 36... Kg7 {[%clk 0:00:34]} 37. Rd3 {[%clk 0:00:24]} 37... Kf7 {[%clk
0:00:29.8]} 38. f4 {[%clk 0:00:24.9]} 38... Bf6 {[%clk 0:00:27.6]} 39. Rxd6
{[%clk 0:00:25.8]} 39... Be7 {[%clk 0:00:26.9]} 40. Rd3 {[%clk 0:00:26.4]} 40...
Bxa3 {[%clk 0:00:26.4]} 41. Rxa3 {[%clk 0:00:25.5]} 41... Ke6 {[%clk 0:00:28.3]}
42. g4 {[%clk 0:00:25.5]} 42... Kd5 {[%clk 0:00:29.2]} 43. Kg3 {[%clk
0:00:26.8]} 43... Kc4 {[%clk 0:00:30.3]} 44. f5 {[%clk 0:00:27.3]} 44... Kb4
{[%clk 0:00:28.7]} 45. Ra1 {[%clk 0:00:27.8]} 45... a3 {[%clk 0:00:29.4]} 46.
fxg6 {[%clk 0:00:27.6]} 46... hxg6 {[%clk 0:00:29.7]} 47. h4 {[%clk 0:00:28.3]}
47... Kb3 {[%clk 0:00:30.8]} 48. h5 {[%clk 0:00:29.1]} 48... gxh5 {[%clk
0:00:31.3]} 49. gxh5 {[%clk 0:00:29.5]} 49... Kb2 {[%clk 0:00:32.7]} 50. Rh1
{[%clk 0:00:28.9]} 50... a2 {[%clk 0:00:33.9]} 51. Kg4 {[%clk 0:00:28.6]} 51...
a1=Q {[%clk 0:00:32]} 52. Rxa1 {[%clk 0:00:29.1]} 52... Rxa1 {[%clk 0:00:31.5]}
53. Kg5 {[%clk 0:00:30.6]} 53... Rg1+ {[%clk 0:00:30.4]} 54. Kf6 {[%clk
0:00:31.1]} 54... Kc3 {[%clk 0:00:30.6]} 55. h6 {[%clk 0:00:31.6]} 55... Kd4
{[%clk 0:00:32.3]} 56. h7 {[%clk 0:00:32.6]} 56... Rh1 {[%clk 0:00:33.3]} 57.
Kg7 {[%clk 0:00:33.2]} 57... Rg1+ {[%clk 0:00:35]} 58. Kf6 {[%clk 0:00:33.9]}
58... Rh1 {[%clk 0:00:36.3]} 59. Kg7 {[%clk 0:00:35]} 59... Rg1+ {[%clk
0:00:37.2]} 60. Kf6 {[%clk 0:00:36.2]} 60... Rh1 {[%clk 0:00:38.5]} 61. Kg7
{[%clk 0:00:37.4]} 1/2-1/2